[Event "*** Titled Tuesday Blitz"]
[Site "Chess.com"]
[Date "2019.04.02"]
[Round "3"]
[White "UCantHandleDenker"]
[Black "Anahita_Gholami"]
[Result "0-1"]
[WhiteElo "2467"]
[BlackElo "2678"]
[TimeControl "180+2"]
[EndTime "14:40:58 PDT"]
[Termination "Anahita_Gholami won by resignation"]

1. Nf3 {[%clk 0:03:01.9]} 1... Nf6 {[%clk 0:03:00.8]} 2. g3 {[%clk 0:03:03.8]}
2... d5 {[%clk 0:03:02.1]} 3. Bg2 {[%clk 0:03:04.5]} 3... Bf5 {[%clk 0:03:03.4]}
4. O-O {[%clk 0:03:06.4]} 4... e6 {[%clk 0:03:04.9]} 5. d3 {[%clk 0:03:07.9]}
5... h6 {[%clk 0:03:05.4]} 6. Nbd2 {[%clk 0:03:09]} 6... Be7 {[%clk 0:03:04.8]}
7. c4 {[%clk 0:03:08.9]} 7... c6 {[%clk 0:03:05.8]} 8. b3 {[%clk 0:03:09]} 8...
O-O {[%clk 0:03:06.5]} 9. Bb2 {[%clk 0:03:09.3]} 9... a5 {[%clk 0:03:07.9]} 10.
a3 {[%clk 0:03:09.7]} 10... Na6 {[%clk 0:03:09]} 11. Ne5 {[%clk 0:02:50.5]}
11... Qb6 {[%clk 0:03:04.7]} 12. Qc2 {[%clk 0:02:48]} 12... Rfc8 {[%clk
0:03:00.7]} 13. Rab1 {[%clk 0:02:11.8]} 13... Qd8 {[%clk 0:02:44.2]} 14. Ndf3
{[%clk 0:02:03.7]} 14... Bh7 {[%clk 0:02:06.2]} 15. Qd2 {[%clk 0:02:01.4]} 15...
Nc5 {[%clk 0:02:04.7]} 16. Bc3 {[%clk 0:02:00.5]} 16... b5 {[%clk 0:01:57.4]}
17. cxb5 {[%clk 0:01:52.8]} 17... cxb5 {[%clk 0:01:59.3]} 18. b4 {[%clk
0:01:48.2]} 18... Na4 {[%clk 0:01:57.8]} 19. Bd4 {[%clk 0:01:48.5]} 19... axb4
{[%clk 0:01:57.1]} 20. axb4 {[%clk 0:01:48.8]} 20... Rc7 {[%clk 0:01:47.1]} 21.
Rfc1 {[%clk 0:01:45.5]} 21... Rac8 {[%clk 0:01:47.6]} 22. Rxc7 {[%clk
0:01:42.9]} 22... Qxc7 {[%clk 0:01:49.5]} 23. Bf1 {[%clk 0:01:07.1]} 23... Qc2
{[%clk 0:01:37.4]} 24. Qxc2 {[%clk 0:01:07.2]} 24... Rxc2 {[%clk 0:01:39.3]} 25.
Ba1 {[%clk 0:01:08.6]} 25... g5 {[%clk 0:01:34.1]} 26. Nd4 {[%clk 0:01:08.5]}
26... Ra2 {[%clk 0:01:32.5]} 27. Nxb5 {[%clk 0:01:08]} 27... Ne8 {[%clk
0:01:04.6]} 28. Nc6 {[%clk 0:01:03.4]} 28... Bf8 {[%clk 0:01:05.7]} 29. Bd4
{[%clk 0:01:00.3]} 29... f6 {[%clk 0:01:02.2]} 30. Nc3 {[%clk 0:00:50.2]} 30...
Nxc3 {[%clk 0:01:00.3]} 31. Bxc3 {[%clk 0:00:52.1]} 31... Rc2 {[%clk 0:01:01.8]}
32. Rb3 {[%clk 0:00:52.4]} 32... Nd6 {[%clk 0:00:59.1]} 33. Nd4 {[%clk
0:00:49.2]} 33... Rc1 {[%clk 0:00:59.8]} 34. f4 {[%clk 0:00:23.7]} 34... e5
{[%clk 0:00:54.1]} 35. fxe5 {[%clk 0:00:23.5]} 35... fxe5 {[%clk 0:00:56]} 36.
Nf3 {[%clk 0:00:24]} 36... e4 {[%clk 0:00:56]} 37. dxe4 {[%clk 0:00:22.4]} 37...
Nxe4 {[%clk 0:00:57.3]} 38. Bd4 {[%clk 0:00:21.9]} 38... g4 {[%clk 0:00:52.9]}
39. Be3 {[%clk 0:00:15.6]} 39... Rd1 {[%clk 0:00:14.3]} 40. Ne5 {[%clk
0:00:14.2]} 40... d4 {[%clk 0:00:15.1]} 41. Bf4 {[%clk 0:00:15]} 41... Nc3
{[%clk 0:00:15.6]} 42. Kf2 {[%clk 0:00:15.1]} 42... Ne4+ {[%clk 0:00:15.7]} 43.
Kg2 {[%clk 0:00:15.4]} 43... Nc3 {[%clk 0:00:17.1]} 44. Kf2 {[%clk 0:00:16.3]}
44... Be4 {[%clk 0:00:18.4]} 45. Nxg4 {[%clk 0:00:13.2]} 45... Bd5 {[%clk
0:00:18.9]} 46. Nf6+ {[%clk 0:00:14.1]} 46... Kf7 {[%clk 0:00:19.6]} 47. Nxd5
{[%clk 0:00:16]} 47... Nxd5 {[%clk 0:00:21.5]} 48. Bg2 {[%clk 0:00:16.9]} 48...
Nxb4 {[%clk 0:00:22.5]} 49. Bf3 {[%clk 0:00:15.3]} 49... Kf6 {[%clk 0:00:22.4]}
50. Bxh6 {[%clk 0:00:14.8]} 50... Bxh6 {[%clk 0:00:22.7]} 51. Rxb4 {[%clk
0:00:15.9]} 51... Bd2 {[%clk 0:00:21.9]} 52. Rb6+ {[%clk 0:00:15.8]} 52... Ke5
{[%clk 0:00:22]} 53. Kg2 {[%clk 0:00:17.7]} 53... Be3 {[%clk 0:00:21.2]} 54. h4
{[%clk 0:00:18]} 54... Rg1+ {[%clk 0:00:21.6]} 55. Kh3 {[%clk 0:00:18.7]} 55...
Bf2 {[%clk 0:00:22.8]} 56. Rb5+ {[%clk 0:00:19]} 56... Kf6 {[%clk 0:00:23.6]}
57. Rg5 {[%clk 0:00:20.9]} 57... Be3 {[%clk 0:00:25.1]} 58. Kg4 {[%clk
0:00:21.6]} 58... Bxg5 {[%clk 0:00:25.3]} 59. hxg5+ {[%clk 0:00:22.3]} 59... Ke5
{[%clk 0:00:26.1]} 60. Kh5 {[%clk 0:00:17.1]} 60... Rxg3 {[%clk 0:00:26]} 61. g6
{[%clk 0:00:13.7]} 61... Kf6 {[%clk 0:00:27.9]} 62. Be4 {[%clk 0:00:14.5]} 62...
Rg5+ {[%clk 0:00:23]} 63. Kh4 {[%clk 0:00:14.2]} 63... Re5 {[%clk 0:00:23]} 64.
Bd3 {[%clk 0:00:15.7]} 64... Rg5 {[%clk 0:00:22.7]} 65. Kh3 {[%clk 0:00:16]}
65... Kg7 {[%clk 0:00:23.4]} 66. Kh4 {[%clk 0:00:17.3]} 66... Kh6 {[%clk
0:00:24.6]} 67. Kh3 {[%clk 0:00:18.7]} 67... Kh5 {[%clk 0:00:25.9]} 68. Kh2
{[%clk 0:00:19.4]} 68... Kh4 {[%clk 0:00:26.8]} 69. Be4 {[%clk 0:00:19.2]} 69...
Rg4 {[%clk 0:00:27.4]} 70. Bf5 {[%clk 0:00:19.8]} 70... Rg3 {[%clk 0:00:28.2]}
71. Bd3 {[%clk 0:00:21.7]} 71... Kg4 {[%clk 0:00:27.7]} 72. Bf5+ {[%clk
0:00:21.1]} 72... Kf4 {[%clk 0:00:27.8]} 73. Bd3 {[%clk 0:00:22.8]} 73... Rg5
{[%clk 0:00:27.9]} 74. Kh3 {[%clk 0:00:24.1]} 74... Rg4 {[%clk 0:00:27.7]} 75.
Kh2 {[%clk 0:00:24.7]} 75... Rg3 {[%clk 0:00:28.1]} 76. Kh1 {[%clk 0:00:22.6]}
76... Ke3 {[%clk 0:00:23]} 77. Kh2 {[%clk 0:00:22.2]} 77... Kf2 {[%clk
0:00:24.3]} 78. Bc2 {[%clk 0:00:06.3]} 78... Rg5 {[%clk 0:00:23]} 79. Kh3 {[%clk
0:00:03.1]} 79... Kxe2 {[%clk 0:00:21.5]} 80. Kh4 {[%clk 0:00:04.5]} 80... Rg1
{[%clk 0:00:22.5]} 81. Kh5 {[%clk 0:00:05]} 81... Kd2 {[%clk 0:00:13.4]} 82. Be4
{[%clk 0:00:05.3]} 82... Ke3 {[%clk 0:00:14.1]} 83. Bc2 {[%clk 0:00:05.5]} 83...
Rg2 {[%clk 0:00:15.1]} 84. Bb1 {[%clk 0:00:05.8]} 84... Rh2+ {[%clk 0:00:13.3]}
85. Kg5 {[%clk 0:00:06.5]} 85... Rh1 {[%clk 0:00:14.7]} 86. Bf5 {[%clk
0:00:05.7]} 86... Rg1+ {[%clk 0:00:14.8]} 87. Kh6 {[%clk 0:00:07.1]} 87... Kf4
{[%clk 0:00:15.8]} 88. Bd3 {[%clk 0:00:07.8]} 88... Ke5 {[%clk 0:00:16.7]} 89.
Kh7 {[%clk 0:00:06.7]} 89... Kf6 {[%clk 0:00:17.8]} 90. Be4 {[%clk 0:00:07.4]}
90... Rg4 {[%clk 0:00:18.9]} 91. Bd3 {[%clk 0:00:08.1]} 91... Rg3 {[%clk
0:00:20.2]} 92. Be4 {[%clk 0:00:08.8]} 92... d3 {[%clk 0:00:21.6]} 93. Bxd3
{[%clk 0:00:03.3]} 93... Rh3+ {[%clk 0:00:22.4]} 94. Kg8 {[%clk 0:00:03.5]}
94... Rxd3 {[%clk 0:00:24.3]} 95. g7 {[%clk 0:00:04.5]} 95... Rf3 {[%clk
0:00:25.3]} 96. Kh8 {[%clk 0:00:05.7]} 96... Rh3+ {[%clk 0:00:25.7]} 97. Kg8
{[%clk 0:00:06.7]} 97... Rg3 {[%clk 0:00:24.6]} 98. Kh8 {[%clk 0:00:07.6]} 98...
Kf7 {[%clk 0:00:20.3]} 99. Kh7 {[%clk 0:00:06.4]} 99... Rxg7+ {[%clk 0:00:20.5]}
100. Kh8 {[%clk 0:00:08.3]} 100... Rg5 {[%clk 0:00:20.9]} 0-1

[Event "*** Titled Tuesday Blitz"]
[Site "Chess.com"]
[Date "2019.04.02"]
[Round "4"]
[White "novocane"]
[Black "pedroholly22"]
[Result "0-1"]
[WhiteElo "2195"]
[BlackElo "2269"]
[TimeControl "180+2"]
[EndTime "14:43:52 PDT"]
[Termination "pedroholly22 won by resignation"]

1. d4 {[%clk 0:03:01.8]} 1... g6 {[%clk 0:03:01.9]} 2. c4 {[%clk 0:03:00.7]}
2... Bg7 {[%clk 0:03:03.2]} 3. Nc3 {[%clk 0:03:01.8]} 3... c5 {[%clk 0:03:03.7]}
4. d5 {[%clk 0:02:59.6]} 4... Bxc3+ {[%clk 0:03:01.7]} 5. bxc3 {[%clk
0:03:00.9]} 5... f5 {[%clk 0:03:02.7]} 6. g4 {[%clk 0:03:01.2]} 6... fxg4 {[%clk
0:02:58.7]} 7. h3 {[%clk 0:03:02]} 7... g3 {[%clk 0:02:59.8]} 8. fxg3 {[%clk
0:03:02.9]} 8... Nf6 {[%clk 0:03:00.1]} 9. Bg2 {[%clk 0:03:03.5]} 9... d6 {[%clk
0:03:00.3]} 10. g4 {[%clk 0:02:53.4]} 10... O-O {[%clk 0:02:59.6]} 11. Nf3
{[%clk 0:02:54.6]} 11... Qa5 {[%clk 0:02:55.5]} 12. Qd3 {[%clk 0:02:33.2]} 12...
Ne4 {[%clk 0:02:50.1]} 13. Qxe4 {[%clk 0:02:17]} 13... Qxc3+ {[%clk 0:02:50]}
14. Bd2 {[%clk 0:02:16.3]} 14... Qxa1+ {[%clk 0:02:50.4]} 15. Kf2 {[%clk
0:02:16.6]} 15... Qf6 {[%clk 0:02:50.3]} 16. Bg5 {[%clk 0:02:12.2]} 16... Qxg5
{[%clk 0:02:49.9]} 0-1

[Event "*** Titled Tuesday Blitz"]
[Site "Chess.com"]
[Date "2019.04.02"]
[Round "4"]
[White "Twiceblessed"]
[Black "Andreikka"]
[Result "0-1"]
[WhiteElo "2581"]
[BlackElo "2863"]
[TimeControl "180+2"]
[EndTime "14:44:23 PDT"]
[Termination "Andreikka won by resignation"]

1. d4 {[%clk 0:03:01.9]} 1... Nf6 {[%clk 0:03:00.8]} 2. c4 {[%clk 0:03:03.2]}
2... g6 {[%clk 0:03:02.2]} 3. Nc3 {[%clk 0:03:04.2]} 3... d5 {[%clk 0:03:03.8]}
4. cxd5 {[%clk 0:03:06.1]} 4... Nxd5 {[%clk 0:03:05.1]} 5. e4 {[%clk 0:03:07.6]}
5... Nxc3 {[%clk 0:03:06.7]} 6. bxc3 {[%clk 0:03:09.5]} 6... Bg7 {[%clk
0:03:08.3]} 7. Be3 {[%clk 0:03:10.8]} 7... c5 {[%clk 0:03:09.6]} 8. Qd2 {[%clk
0:03:12.1]} 8... Qa5 {[%clk 0:03:10.3]} 9. Rc1 {[%clk 0:03:12.4]} 9... O-O
{[%clk 0:03:11.6]} 10. Nf3 {[%clk 0:03:12.6]} 10... Rd8 {[%clk 0:03:13]} 11. d5
{[%clk 0:03:04.6]} 11... e6 {[%clk 0:03:14.3]} 12. Bg5 {[%clk 0:03:05.2]} 12...
f6 {[%clk 0:03:15.6]} 13. Bf4 {[%clk 0:03:05.1]} 13... Nc6 {[%clk 0:03:09.9]}
14. Be2 {[%clk 0:02:58.7]} 14... Ne7 {[%clk 0:03:03.9]} 15. c4 {[%clk
0:02:56.9]} 15... Qxd2+ {[%clk 0:03:04.9]} 16. Nxd2 {[%clk 0:02:57.8]} 16... Bd7
{[%clk 0:02:59.1]} 17. Bd6 {[%clk 0:02:53]} 17... Bf8 {[%clk 0:02:44.9]} 18.
Bxc5 {[%clk 0:02:53.4]} 18... Rac8 {[%clk 0:02:39.5]} 19. Bxa7 {[%clk
0:02:51.9]} 19... exd5 {[%clk 0:02:39.9]} 20. exd5 {[%clk 0:02:39]} 20... Nxd5
{[%clk 0:02:39.4]} 21. O-O {[%clk 0:02:33.1]} 21... Nf4 {[%clk 0:02:40.1]} 22.
Bf3 {[%clk 0:02:28.6]} 22... Bc6 {[%clk 0:02:41.2]} 23. Ne4 {[%clk 0:02:27.3]}
23... Bxe4 {[%clk 0:02:41.5]} 24. Bxe4 {[%clk 0:02:29.2]} 24... Ne2+ {[%clk
0:02:43]} 25. Kh1 {[%clk 0:02:30.4]} 25... Nxc1 {[%clk 0:02:44.6]} 26. Bxb7
{[%clk 0:02:12.8]} 26... Rxc4 {[%clk 0:02:44]} 0-1

[Event "*** Titled Tuesday Blitz"]
[Site "Chess.com"]
[Date "2019.04.02"]
[Round "4"]
[White "Chess_for_enjoy"]
[Black "NeverEverForever1990"]
[Result "1/2-1/2"]
[WhiteElo "2525"]
[BlackElo "2389"]
[TimeControl "180+2"]
[EndTime "14:44:39 PDT"]
[Termination "Game drawn by agreement"]

1. d4 {[%clk 0:03:01.9]} 1... Nf6 {[%clk 0:02:42.5]} 2. c4 {[%clk 0:03:01.5]}
2... e6 {[%clk 0:02:43]} 3. Nc3 {[%clk 0:03:01.3]} 3... Bb4 {[%clk 0:02:42.5]}
4. e3 {[%clk 0:03:01.9]} 4... O-O {[%clk 0:02:42.7]} 5. a3 {[%clk 0:03:03.4]}
5... Bxc3+ {[%clk 0:02:42.4]} 6. bxc3 {[%clk 0:03:05.3]} 6... d6 {[%clk
0:02:43.7]} 7. Bd3 {[%clk 0:03:06.4]} 7... e5 {[%clk 0:02:45.3]} 8. Ne2 {[%clk
0:03:06.7]} 8... e4 {[%clk 0:02:45.8]} 9. Bb1 {[%clk 0:03:05.1]} 9... Be6 {[%clk
0:02:46.9]} 10. Ng3 {[%clk 0:03:05.5]} 10... Bxc4 {[%clk 0:02:34.7]} 11. Nxe4
{[%clk 0:03:06.3]} 11... Nxe4 {[%clk 0:02:33.3]} 12. Bxe4 {[%clk 0:03:08.2]}
12... d5 {[%clk 0:02:34]} 13. Bd3 {[%clk 0:03:09.2]} 13... Bxd3 {[%clk 0:02:35]}
14. Qxd3 {[%clk 0:03:10.7]} 14... Nd7 {[%clk 0:02:36.5]} 15. c4 {[%clk
0:03:10.9]} 15... dxc4 {[%clk 0:02:35.7]} 16. Qxc4 {[%clk 0:03:12.8]} 16... c6
{[%clk 0:02:16.1]} 17. O-O {[%clk 0:03:12.5]} 17... Nf6 {[%clk 0:02:17.1]} 18.
a4 {[%clk 0:03:12]} 18... Qd5 {[%clk 0:02:17.2]} 19. Qc2 {[%clk 0:03:09.6]}
19... Qe4 {[%clk 0:02:15.4]} 20. Qe2 {[%clk 0:03:09.1]} 20... Rfe8 {[%clk
0:02:13.8]} 21. Ba3 {[%clk 0:03:08.5]} 21... Qxd4 {[%clk 0:02:11.9]} 1/2-1/2

[Event "*** Titled Tuesday Blitz"]
[Site "Chess.com"]
[Date "2019.04.02"]
[Round "4"]
[White "europa2012"]
[Black "norwaytoadog"]
[Result "0-1"]
[WhiteElo "2101"]
[BlackElo "2222"]
[TimeControl "180+2"]
[EndTime "14:44:56 PDT"]
[Termination "norwaytoadog won by resignation"]

1. d4 {[%clk 0:03:01.9]} 1... Nf6 {[%clk 0:03:00.2]} 2. c4 {[%clk 0:03:02.9]}
2... e6 {[%clk 0:03:01.7]} 3. Nf3 {[%clk 0:03:03.5]} 3... Bb4+ {[%clk
0:03:02.9]} 4. Nbd2 {[%clk 0:03:04.8]} 4... O-O {[%clk 0:02:58.4]} 5. e3 {[%clk
0:03:05.5]} 5... b6 {[%clk 0:02:55.7]} 6. a3 {[%clk 0:03:06.8]} 6... Bxd2+
{[%clk 0:02:56.3]} 7. Bxd2 {[%clk 0:03:08.1]} 7... Bb7 {[%clk 0:02:56.8]} 8. Bd3
{[%clk 0:03:09.1]} 8... d6 {[%clk 0:02:56.3]} 9. Qc2 {[%clk 0:03:09.7]} 9...
Nbd7 {[%clk 0:02:56.6]} 10. O-O {[%clk 0:03:10.5]} 10... e5 {[%clk 0:02:57.1]}
11. d5 {[%clk 0:03:04]} 11... Nc5 {[%clk 0:02:56.5]} 12. Be2 {[%clk 0:03:02.8]}
12... a5 {[%clk 0:02:55.9]} 13. b4 {[%clk 0:03:02.5]} 13... axb4 {[%clk
0:02:54.4]} 14. axb4 {[%clk 0:03:03.2]} 14... Nce4 {[%clk 0:02:55.1]} 15. h3
{[%clk 0:02:56.4]} 15... Nxd2 {[%clk 0:02:52.9]} 16. Nxd2 {[%clk 0:02:53.7]}
16... Qe7 {[%clk 0:02:45.6]} 17. Nb3 {[%clk 0:02:53.3]} 17... c5 {[%clk
0:02:22.2]} 18. b5 {[%clk 0:02:47]} 18... Nd7 {[%clk 0:02:19.1]} 19. e4 {[%clk
0:02:41.5]} 19... Qh4 {[%clk 0:02:14.1]} 20. f3 {[%clk 0:02:37.8]} 20... f5
{[%clk 0:02:09.3]} 21. exf5 {[%clk 0:02:32.1]} 21... Nf6 {[%clk 0:02:08.9]} 22.
Rxa8 {[%clk 0:02:22]} 22... Rxa8 {[%clk 0:02:03.4]} 23. Ra1 {[%clk 0:02:14.9]}
23... Rxa1+ {[%clk 0:02:03.5]} 24. Nxa1 {[%clk 0:02:13.3]} 24... Qd4+ {[%clk
0:02:02.8]} 25. Kh2 {[%clk 0:02:13.5]} 25... Qxa1 {[%clk 0:02:03.4]} 0-1

[Event "*** Titled Tuesday Blitz"]
[Site "Chess.com"]
[Date "2019.04.02"]
[Round "4"]
[White "Zq1"]
[Black "Phelathegreat"]
[Result "1-0"]
[WhiteElo "2525"]
[BlackElo "2321"]
[TimeControl "180+2"]
[EndTime "14:45:03 PDT"]
[Termination "Zq1 won by resignation"]

1. d4 {[%clk 0:02:38.9]} 1... Nf6 {[%clk 0:03:00.8]} 2. c4 {[%clk 0:02:40]} 2...
g6 {[%clk 0:03:02.3]} 3. Nc3 {[%clk 0:02:40.9]} 3... Bg7 {[%clk 0:03:03.8]} 4.
e4 {[%clk 0:02:42]} 4... d6 {[%clk 0:03:05.4]} 5. Nf3 {[%clk 0:02:43]} 5... O-O
{[%clk 0:03:06.8]} 6. Be2 {[%clk 0:02:44.1]} 6... Na6 {[%clk 0:03:08.3]} 7. O-O
{[%clk 0:02:44.8]} 7... e5 {[%clk 0:03:09.9]} 8. Re1 {[%clk 0:02:44.6]} 8... Bg4
{[%clk 0:03:04.8]} 9. Be3 {[%clk 0:02:43.7]} 9... Re8 {[%clk 0:02:59.3]} 10. d5
{[%clk 0:02:44.1]} 10... Nc5 {[%clk 0:02:58.5]} 11. Nd2 {[%clk 0:02:41.5]} 11...
Bxe2 {[%clk 0:02:38.7]} 12. Qxe2 {[%clk 0:02:42]} 12... a5 {[%clk 0:02:39.1]}
13. b3 {[%clk 0:02:36.7]} 13... Rf8 {[%clk 0:02:38.7]} 14. a3 {[%clk 0:02:37]}
14... b6 {[%clk 0:02:39.9]} 15. b4 {[%clk 0:02:37.5]} 15... Nb7 {[%clk
0:02:41.1]} 16. Rab1 {[%clk 0:02:30.4]} 16... Nd7 {[%clk 0:02:41.9]} 17. f3
{[%clk 0:02:24.6]} 17... f5 {[%clk 0:02:43.1]} 18. Nb3 {[%clk 0:02:16.4]} 18...
f4 {[%clk 0:02:40.9]} 19. Bf2 {[%clk 0:02:16.5]} 19... g5 {[%clk 0:02:41.9]} 20.
Nc1 {[%clk 0:02:11.7]} 20... h5 {[%clk 0:02:40.8]} 21. Nd3 {[%clk 0:02:12.6]}
21... Qe7 {[%clk 0:02:35.5]} 22. Nb5 {[%clk 0:02:07.4]} 22... Rac8 {[%clk
0:02:34.3]} 23. Na7 {[%clk 0:02:06.9]} 23... Ra8 {[%clk 0:02:32.7]} 24. Nc6
{[%clk 0:02:07.7]} 24... Qf6 {[%clk 0:02:33.7]} 25. Rec1 {[%clk 0:01:55.3]}
25... Rf7 {[%clk 0:02:34.7]} 26. c5 {[%clk 0:01:53.7]} 26... bxc5 {[%clk
0:02:30.1]} 27. bxc5 {[%clk 0:01:54.2]} 27... Bf8 {[%clk 0:02:31.7]} 28. Rxb7
{[%clk 0:01:53.6]} 1-0

[Event "*** Titled Tuesday Blitz"]
[Site "Chess.com"]
[Date "2019.04.02"]
[Round "4"]
[White "Vrolijk"]
[Black "Mostii"]
[Result "1-0"]
[WhiteElo "2849"]
[BlackElo "2472"]
[TimeControl "180+2"]
[EndTime "14:45:19 PDT"]
[Termination "Vrolijk won by resignation"]

1. d4 {[%clk 0:03:01.9]} 1... e6 {[%clk 0:02:57.8]} 2. Nf3 {[%clk 0:03:01.7]}
2... b6 {[%clk 0:02:59]} 3. Bg5 {[%clk 0:03:01]} 3... Be7 {[%clk 0:02:52.1]} 4.
Bxe7 {[%clk 0:02:59.7]} 4... Qxe7 {[%clk 0:02:52.9]} 5. Nc3 {[%clk 0:02:58.9]}
5... d5 {[%clk 0:02:51.8]} 6. e3 {[%clk 0:02:49.5]} 6... Nf6 {[%clk 0:02:52.5]}
7. Bb5+ {[%clk 0:02:50.8]} 7... c6 {[%clk 0:02:48.7]} 8. Bd3 {[%clk 0:02:51.1]}
8... O-O {[%clk 0:02:50.2]} 9. O-O {[%clk 0:02:52]} 9... Bb7 {[%clk 0:02:50.9]}
10. e4 {[%clk 0:02:53.3]} 10... dxe4 {[%clk 0:02:52.2]} 11. Nxe4 {[%clk
0:02:55.2]} 11... Nxe4 {[%clk 0:02:53.6]} 12. Bxe4 {[%clk 0:02:57]} 12... Nd7
{[%clk 0:02:55.3]} 13. Re1 {[%clk 0:02:50.8]} 13... Nf6 {[%clk 0:02:56.3]} 14.
Bd3 {[%clk 0:02:51.4]} 14... c5 {[%clk 0:02:57.3]} 15. dxc5 {[%clk 0:02:51.2]}
15... Qxc5 {[%clk 0:02:59.2]} 16. Ne5 {[%clk 0:02:45.1]} 16... Rad8 {[%clk
0:02:53.4]} 17. Qe2 {[%clk 0:02:45.7]} 17... h6 {[%clk 0:02:47.9]} 18. a3 {[%clk
0:02:39.5]} 18... Qd4 {[%clk 0:02:31.6]} 19. Rab1 {[%clk 0:02:20.1]} 19... Nd5
{[%clk 0:02:16.8]} 20. Nf3 {[%clk 0:02:09.1]} 20... Qg4 {[%clk 0:01:55.7]} 21.
h3 {[%clk 0:01:51.5]} 21... Qh5 {[%clk 0:01:54.2]} 22. Qe4 {[%clk 0:01:51.6]}
22... Nf6 {[%clk 0:01:52.1]} 23. Qxb7 {[%clk 0:01:50.2]} 1-0

[Event "*** Titled Tuesday Blitz"]
[Site "Chess.com"]
[Date "2019.04.02"]
[Round "4"]
[White "melicg25"]
[Black "wannabe2700"]
[Result "0-1"]
[WhiteElo "2299"]
[BlackElo "2599"]
[TimeControl "180+2"]
[EndTime "14:46:07 PDT"]
[Termination "wannabe2700 won by resignation"]

1. e4 {[%clk 0:02:20]} 1... e5 {[%clk 0:02:50.2]} 2. Nf3 {[%clk 0:02:20.6]} 2...
Nf6 {[%clk 0:02:49.8]} 3. Nxe5 {[%clk 0:02:21.2]} 3... d6 {[%clk 0:02:50.7]} 4.
Nf3 {[%clk 0:02:20.4]} 4... Nxe4 {[%clk 0:02:51.7]} 5. d4 {[%clk 0:02:21.8]}
5... d5 {[%clk 0:02:51.8]} 6. Bd3 {[%clk 0:02:23.3]} 6... Bd6 {[%clk 0:02:52.2]}
7. O-O {[%clk 0:02:23.8]} 7... O-O {[%clk 0:02:52.9]} 8. c4 {[%clk 0:02:25]}
8... c6 {[%clk 0:02:53.6]} 9. Nc3 {[%clk 0:02:24]} 9... Nxc3 {[%clk 0:02:46.5]}
10. bxc3 {[%clk 0:02:25.1]} 10... Bg4 {[%clk 0:02:38.3]} 11. h3 {[%clk
0:02:25.8]} 11... Bh5 {[%clk 0:02:35.1]} 12. cxd5 {[%clk 0:02:24.2]} 12... cxd5
{[%clk 0:02:35.6]} 13. Bc2 {[%clk 0:02:13.4]} 13... Nd7 {[%clk 0:02:32.1]} 14.
Qd3 {[%clk 0:02:06.2]} 14... Bg6 {[%clk 0:02:31.8]} 15. Qd2 {[%clk 0:02:07.7]}
15... Rc8 {[%clk 0:02:25.2]} 16. Bxg6 {[%clk 0:02:07]} 16... hxg6 {[%clk
0:02:26.9]} 17. Bb2 {[%clk 0:02:04.9]} 17... Nf6 {[%clk 0:02:27.7]} 18. Qd3
{[%clk 0:02:03.8]} 18... Qa5 {[%clk 0:02:26]} 19. Rfc1 {[%clk 0:02:03.6]} 19...
Rc6 {[%clk 0:02:20.6]} 20. a4 {[%clk 0:02:04]} 20... Rfc8 {[%clk 0:02:18.3]} 21.
Ne5 {[%clk 0:01:57.4]} 21... Bxe5 {[%clk 0:02:15.9]} 22. dxe5 {[%clk 0:01:59.3]}
22... Ne4 {[%clk 0:02:17.6]} 23. Ra3 {[%clk 0:01:52.1]} 23... Rc4 {[%clk
0:02:16.9]} 24. Rd1 {[%clk 0:01:26.8]} 24... Nxf2 {[%clk 0:02:09.9]} 25. Kxf2
{[%clk 0:01:18]} 25... Qb6+ {[%clk 0:02:10.8]} 26. Kg3 {[%clk 0:01:14.8]} 26...
Qxb2 {[%clk 0:02:10.5]} 27. Raa1 {[%clk 0:01:12.4]} 27... Rxc3 {[%clk
0:02:10.9]} 0-1

[Event "*** Titled Tuesday Blitz"]
[Site "Chess.com"]
[Date "2019.04.02"]
[Round "4"]
[White "VitaliyBernadskiy"]
[Black "DagurR"]
[Result "1-0"]
[WhiteElo "2716"]
[BlackElo "2531"]
[TimeControl "180+2"]
[EndTime "14:46:31 PDT"]
[Termination "VitaliyBernadskiy won by resignation"]

1. e4 {[%clk 0:03:01.9]} 1... c5 {[%clk 0:03:00.9]} 2. Nf3 {[%clk 0:03:00.1]}
2... e6 {[%clk 0:03:02.1]} 3. d4 {[%clk 0:03:01]} 3... cxd4 {[%clk 0:03:03.5]}
4. Nxd4 {[%clk 0:03:02.9]} 4... Nc6 {[%clk 0:03:04.9]} 5. Nc3 {[%clk 0:03:03.9]}
5... Qc7 {[%clk 0:03:06.2]} 6. g3 {[%clk 0:03:00.6]} 6... a6 {[%clk 0:03:05.3]}
7. Bg2 {[%clk 0:03:01.5]} 7... d6 {[%clk 0:03:06.5]} 8. O-O {[%clk 0:03:02.1]}
8... Bd7 {[%clk 0:03:08]} 9. Nf3 {[%clk 0:03:00.6]} 9... Ne5 {[%clk 0:02:57.9]}
10. Nxe5 {[%clk 0:02:51.5]} 10... dxe5 {[%clk 0:02:59]} 11. a4 {[%clk
0:02:49.7]} 11... Bb4 {[%clk 0:02:58.7]} 12. Qg4 {[%clk 0:02:47.9]} 12... g6
{[%clk 0:02:41.4]} 13. Rd1 {[%clk 0:02:48.1]} 13... Bc6 {[%clk 0:02:36.7]} 14.
Nd5 {[%clk 0:02:40.9]} 14... Bxd5 {[%clk 0:01:46.3]} 15. exd5 {[%clk 0:02:42.8]}
15... Qxc2 {[%clk 0:01:47.5]} 16. Bg5 {[%clk 0:02:19]} 16... Bc5 {[%clk
0:01:42]} 17. dxe6 {[%clk 0:02:14.5]} 17... Qxf2+ {[%clk 0:01:15.3]} 18. Kh1
{[%clk 0:02:15]} 18... f6 {[%clk 0:01:15.9]} 19. Bxb7 {[%clk 0:01:52.9]} 19...
Ra7 {[%clk 0:01:16.9]} 20. Bc6+ {[%clk 0:01:51.7]} 20... Ke7 {[%clk 0:01:17.8]}
21. Rd2 {[%clk 0:01:43.6]} 21... h5 {[%clk 0:01:14.9]} 22. Qc4 {[%clk
0:01:42.3]} 22... fxg5 {[%clk 0:01:10.7]} 23. Rxf2 {[%clk 0:01:41.5]} 23... Bxf2
{[%clk 0:01:11.9]} 24. Rf1 {[%clk 0:01:38.3]} 1-0